[Event "RUS-ch Blitz 2021"]
[Site "Sochi"]
[Date "2021.10.11"]
[Round "9.6"]
[White "Kukhmazov, Arsen"]
[Black "Sjugirov, Sanan"]
[Result "1-0"]
[ECO "E15"]
[WhiteElo "2472"]
[BlackElo "2663"]
[Annotator "ChessBase"]
[PlyCount "253"]
[EventDate "2021.10.11"]
[EventType "blitz"]
[EventCountry "RUS"]
[SourceTitle "playchess.com"]
[Source "ChessBase"]
[SourceQuality "1"]
[TimeControl "180+2"]

1. d4 {[%emt 0:00:04]} Nf6 {[%emt 0:00:00]} 2. c4 {[%emt 0:00:00]} e6 {[%emt 0:
00:11]} 3. Nf3 {[%emt 0:00:00]} b6 {[%emt 0:00:07]} 4. g3 {[%emt 0:00:00]} Ba6
{[%emt 0:00:00]} 5. Qc2 {[%emt 0:00:16]} Bb4+ {[%emt 0:00:00]} 6. Bd2 {[%emt 0:
00:00]} Bxd2+ {[%emt 0:00:02]} 7. Nbxd2 {[%emt 0:00:00]} c5 {[%emt 0:00:06]} 8.
Bg2 {[%emt 0:00:06]} Bb7 {[%emt 0:00:02]} 9. O-O {[%emt 0:00:11]} cxd4 {
[%emt 0:00:13]} 10. Nxd4 {[%emt 0:00:03]} Bxg2 {[%emt 0:00:02]} 11. Kxg2 {
[%emt 0:00:00]} O-O {[%emt 0:00:08]} 12. Rfd1 {[%emt 0:00:03]} Qc8 {[%emt 0:00:
18]} 13. Rac1 {[%emt 0:00:05]} a6 {[%emt 0:00:00]} 14. N2f3 {[%emt 0:01:02]}
Nc6 {[%emt 0:00:13]} 15. c5 {[%emt 0:00:20]} Nxd4 {[%emt 0:00:33]} 16. Rxd4 {
[%emt 0:00:00]} Qc7 {[%emt 0:00:16]} 17. cxb6 {[%emt 0:00:10]} Qxb6 {[%emt 0:
00:03]} 18. b3 {[%emt 0:00:02]} a5 {[%emt 0:00:35]} 19. Qc5 {[%emt 0:00:08]}
Qa6 {[%emt 0:00:00]} 20. Qc4 {[%emt 0:00:07]} Qb7 {[%emt 0:00:05]} 21. Qc7 {
[%emt 0:00:03]} Qa6 {[%emt 0:00:08]} 22. Qc4 {[%emt 0:00:17]} Qb7 {[%emt 0:00:
19]} 23. Qc7 {[%emt 0:00:03]} Qb5 {[%emt 0:00:00]} 24. Rdc4 {[%emt 0:00:31]} a4
{[%emt 0:00:09]} 25. bxa4 {[%emt 0:00:08]} Rxa4 {[%emt 0:00:03]} 26. Rxa4 {
[%emt 0:00:05]} Qxa4 {[%emt 0:00:00]} 27. Qc4 {[%emt 0:00:00]} Qa5 {[%emt 0:00:
05]} 28. a4 {[%emt 0:00:02]} h6 {[%emt 0:00:06]} 29. Qb5 {[%emt 0:00:00]} Qa7 {
[%emt 0:00:03]} 30. a5 {[%emt 0:00:04]} Rb8 {[%emt 0:00:04]} 31. Qc5 {[%emt 0:
00:01]} Qa6 {[%emt 0:00:02]} 32. Nd4 {[%emt 0:00:08]} Ra8 {[%emt 0:00:00]} 33.
Ra1 {[%emt 0:00:05]} Qb7+ {[%emt 0:00:00]} 34. f3 {[%emt 0:00:02]} Qb2 {
[%emt 0:00:05]} 35. Ra4 {[%emt 0:00:01]} Nd5 {[%emt 0:00:09]} 36. Qb5 {[%emt 0:
00:00]} Qc1 {[%emt 0:00:05]} 37. Qd3 {[%emt 0:00:01]} Qc5 {[%emt 0:00:02]} 38.
Nb3 {[%emt 0:00:03]} Qa7 {[%emt 0:00:01]} 39. e4 {[%emt 0:00:04]} Ne3+ {
[%emt 0:00:01]} 40. Kh3 {[%emt 0:00:02]} d5 {[%emt 0:00:00]} 41. Qd4 {[%emt 0:
00:02]} Nc4 {[%emt 0:00:05]} 42. Qxa7 {[%emt 0:00:02]} Rxa7 {[%emt 0:00:00]}
43. exd5 {[%emt 0:00:00]} exd5 {[%emt 0:00:00]} 44. a6 {[%emt 0:00:02]} Kf8 {
[%emt 0:00:05]} 45. Nd4 {[%emt 0:00:00]} Ke8 {[%emt 0:00:00]} 46. Nb5 {[%emt 0:
00:03]} Nb6 {[%emt 0:00:03]} 47. Ra2 {[%emt 0:00:07]} Re7 {[%emt 0:00:05]} 48.
a7 {[%emt 0:00:00]} Na8 {[%emt 0:00:00]} 49. Rc2 {[%emt 0:00:03]} Kd8 {[%emt 0:
00:02]} 50. Rc5 {[%emt 0:00:02]} Rd7 {[%emt 0:00:00]} 51. Kg4 {[%emt 0:00:01]}
d4 {[%emt 0:00:00]} 52. Rc2 {[%emt 0:00:00]} Rb7 {[%emt 0:00:03]} 53. Nxd4 {
[%emt 0:00:02]} Rb4 {[%emt 0:00:01]} 54. Rd2 {[%emt 0:00:02]} Ra4 {[%emt 0:00:
02]} 55. f4 {[%emt 0:00:01]} Kc7 {[%emt 0:00:04]} 56. Nf5 {[%emt 0:00:01]} h5+
{[%emt 0:00:00]} 57. Kh3 {[%emt 0:00:04]} g6 {[%emt 0:00:03]} 58. Nh6 {[%emt 0:
00:00]} f6 {[%emt 0:00:01]} 59. Ng8 {[%emt 0:00:01]} Ra6 {[%emt 0:00:03]} 60.
Re2 {[%emt 0:00:04]} g5 {[%emt 0:00:05]} 61. fxg5 {[%emt 0:00:00]} fxg5 {
[%emt 0:00:00]} 62. Re5 {[%emt 0:00:01]} Rg6 {[%emt 0:00:04]} 63. Ne7 {[%emt 0:
00:03]} Rg7 {[%emt 0:00:02]} 64. Nf5 {[%emt 0:00:03]} Rg6 {[%emt 0:00:02]} 65.
Re7+ {[%emt 0:00:02]} Kb6 {[%emt 0:00:00]} 66. Rg7 {[%emt 0:00:03]} Rf6 {
[%emt 0:00:04]} 67. Rxg5 {[%emt 0:00:03]} Kxa7 {[%emt 0:00:02]} 68. Rxh5 {
[%emt 0:00:00]} Nc7 {[%emt 0:00:01]} 69. g4 {[%emt 0:00:01]} Ne6 {[%emt 0:00:
02]} 70. Rh7+ {[%emt 0:00:02]} Kb8 {[%emt 0:00:01]} 71. Re7 {[%emt 0:00:02]}
Nf4+ {[%emt 0:00:01]} 72. Kg3 {[%emt 0:00:00]} Ng6 {[%emt 0:00:04]} 73. Rg7 {
[%emt 0:00:01]} Ra6 {[%emt 0:00:02]} 74. Ne3 {[%emt 0:00:05]} Re6 {[%emt 0:00:
02]} 75. Nd5 {[%emt 0:00:04]} Ra6 {[%emt 0:00:01]} 76. Ne3 {[%emt 0:00:04]} Re6
{[%emt 0:00:01]} 77. Kf2 {[%emt 0:00:02]} Rf6+ {[%emt 0:00:01]} 78. Kg2 {
[%emt 0:00:02]} Re6 {[%emt 0:00:01]} 79. Nd5 {[%emt 0:00:02]} Ra6 {[%emt 0:00:
03]} 80. Kf3 {[%emt 0:00:03]} Rd6 {[%emt 0:00:05]} 81. Ke4 {[%emt 0:00:01]} Ra6
{[%emt 0:00:01]} 82. Kf5 {[%emt 0:00:02]} Nh4+ {[%emt 0:00:01]} 83. Kg5 {
[%emt 0:00:02]} Nf3+ {[%emt 0:00:02]} 84. Kf4 {[%emt 0:00:01]} Nxh2 {[%emt 0:
00:01]} 85. g5 {[%emt 0:00:01]} Ra4+ {[%emt 0:00:01]} 86. Kf5 {[%emt 0:00:01]}
Nf3 {[%emt 0:00:01]} 87. g6 {[%emt 0:00:04]} Nh4+ {[%emt 0:00:02]} 88. Kg5 {
[%emt 0:00:01]} Nxg6 {[%emt 0:00:02]} 89. Kxg6 {[%emt 0:00:03]} Ra7 {[%emt 0:
00:02]} 90. Rg8+ {[%emt 0:00:02]} Kb7 {[%emt 0:00:01]} 91. Kf5 {[%emt 0:00:01]}
Ra5 {[%emt 0:00:08]} 92. Ke6 {[%emt 0:00:02]} Ra1 {[%emt 0:00:02]} 93. Kd6 {
[%emt 0:00:01]} Ra6+ {[%emt 0:00:01]} 94. Kd7 {[%emt 0:00:01]} Ra1 {[%emt 0:00:
03]} 95. Rg2 {[%emt 0:00:01]} Rd1 {[%emt 0:00:02]} 96. Rb2+ {[%emt 0:00:02]}
Ka6 {[%emt 0:00:02]} 97. Kd6 {[%emt 0:00:02]} Ka5 {[%emt 0:00:01]} 98. Rb8 {
[%emt 0:00:03]} Ka4 {[%emt 0:00:03]} 99. Kc5 {[%emt 0:00:02]} Ka3 {[%emt 0:00:
02]} 100. Kc4 {[%emt 0:00:01]} Rh1 {[%emt 0:00:01]} 101. Kd4 {[%emt 0:00:08]}
Rh4+ {[%emt 0:00:04]} 102. Kc5 {[%emt 0:00:00]} Rh5 {[%emt 0:00:01]} 103. Rb1 {
[%emt 0:00:04]} Ka2 {[%emt 0:00:03]} 104. Rb8 {[%emt 0:00:01]} Ka3 {[%emt 0:00:
00]} 105. Rb7 {[%emt 0:00:01]} Ka2 {[%emt 0:00:01]} 106. Kc4 {[%emt 0:00:02]}
Rh4+ {[%emt 0:00:00]} 107. Kd3 {[%emt 0:00:01]} Rh3+ {[%emt 0:00:02]} 108. Ne3
{[%emt 0:00:01]} Ka3 {[%emt 0:00:02]} 109. Kd4 {[%emt 0:00:00]} Ka2 {[%emt 0:
00:04]} 110. Nc4 {[%emt 0:00:07]} Rg3 {[%emt 0:00:04]} 111. Rb2+ {[%emt 0:00:
02]} Ka1 {[%emt 0:00:02]} 112. Rh2 {[%emt 0:00:01]} Kb1 {[%emt 0:00:03]} 113.
Kc5 {[%emt 0:00:02]} Rg8 {[%emt 0:00:03]} 114. Kb4 {[%emt 0:00:01]} Rg3 {
[%emt 0:00:00]} 115. Nd2+ {[%emt 0:00:03]} Kc1 {[%emt 0:00:02]} 116. Nb3+ {
[%emt 0:00:02]} Kd1 {[%emt 0:00:01]} 117. Nd4 {[%emt 0:00:00]} Ke1 {[%emt 0:00:
04]} 118. Kc4 {[%emt 0:00:02]} Kf1 {[%emt 0:00:02]} 119. Nf5 {[%emt 0:00:01]}
Ra3 {[%emt 0:00:03]} 120. Kd4 {[%emt 0:00:01]} Kg1 {[%emt 0:00:02]} 121. Rb2 {
[%emt 0:00:02]} Kf1 {[%emt 0:00:03]} 122. Ne3+ {[%emt 0:00:01]} Kg1 {[%emt 0:
00:00]} 123. Ke4 {[%emt 0:00:02]} Ra8 {[%emt 0:00:00]} 124. Ng4 {[%emt 0:00:02]
} Re8+ {[%emt 0:00:02]} 125. Kf3 {[%emt 0:00:02]} Kf1 {[%emt 0:00:03]} 126.
Rb1+ {[%emt 0:00:02]} Re1 {[%emt 0:00:01]} 127. Nh2+ {[%emt 0:00:00]} 1-0

[Event "RUS-ch Blitz 2021"]
[Site "Sochi"]
[Date "2021.10.11"]
[Round "9.7"]
[White "Mikhailovsky, Vladimir"]
[Black "Sakaev, Konstantin"]
[Result "0-1"]
[ECO "B21"]
[WhiteElo "2184"]
[BlackElo "2603"]
[Annotator "ChessBase"]
[PlyCount "116"]
[EventDate "2021.10.11"]
[EventType "blitz"]
[EventCountry "RUS"]
[SourceTitle "playchess.com"]
[Source "ChessBase"]
[SourceQuality "1"]
[TimeControl "180+2"]

1. e4 {[%emt 0:00:00]} c5 {[%emt 0:00:00]} 2. d4 {[%emt 0:00:00]} cxd4 {
[%emt 0:00:12]} 3. c3 {[%emt 0:00:02]} dxc3 {[%emt 0:00:00]} 4. Nxc3 {[%emt 0:
00:00]} Nc6 {[%emt 0:00:00]} 5. Nf3 {[%emt 0:00:00]} e6 {[%emt 0:00:01]} 6. Bc4
{[%emt 0:00:06]} d6 {[%emt 0:00:00]} 7. O-O {[%emt 0:00:00]} Nf6 {[%emt 0:00:
05]} 8. Qe2 {[%emt 0:00:03]} Be7 {[%emt 0:00:00]} 9. Rd1 {[%emt 0:00:00]} e5 {
[%emt 0:00:04]} 10. h3 {[%emt 0:00:03]} O-O {[%emt 0:00:01]} 11. Bg5 {[%emt 0:
00:03]} a6 {[%emt 0:00:21]} 12. Rd2 {[%emt 0:00:05]} Be6 {[%emt 0:00:14]} 13.
Rad1 {[%emt 0:00:00]} Bxc4 {[%emt 0:00:17]} 14. Qxc4 {[%emt 0:00:05]} Rc8 {
[%emt 0:00:17]} 15. Bxf6 {[%emt 0:00:04]} Bxf6 {[%emt 0:00:23]} 16. Rxd6 {
[%emt 0:00:08]} Nd4 {[%emt 0:00:03]} 17. Rxd8 {[%emt 0:00:50]} Rxc4 {[%emt 0:
00:00]} 18. Rd7 {[%emt 0:00:01]} b5 {[%emt 0:00:06]} 19. Nd2 {[%emt 0:00:15]}
Rc6 {[%emt 0:00:06]} 20. Nf1 {[%emt 0:00:05]} Rd8 {[%emt 0:00:04]} 21. Rxd8+ {
[%emt 0:00:13]} Bxd8 {[%emt 0:00:00]} 22. Ne3 {[%emt 0:00:02]} g6 {[%emt 0:00:
11]} 23. Kf1 {[%emt 0:00:04]} Kg7 {[%emt 0:00:05]} 24. Ned5 {[%emt 0:00:04]}
Ba5 {[%emt 0:00:10]} 25. f3 {[%emt 0:00:22]} b4 {[%emt 0:00:07]} 26. Na4 {
[%emt 0:00:22]} Rc8 {[%emt 0:00:14]} 27. b3 {[%emt 0:00:04]} Rc2 {[%emt 0:00:
02]} 28. Ne3 {[%emt 0:00:07]} Rxa2 {[%emt 0:00:03]} 29. Nc4 {[%emt 0:00:08]}
Nxb3 {[%emt 0:00:00]} 30. Nxe5 {[%emt 0:00:02]} Rxa4 {[%emt 0:00:00]} 31. Rd7 {
[%emt 0:00:03]} Kf6 {[%emt 0:00:15]} 32. f4 {[%emt 0:00:00]} Ke6 {[%emt 0:00:
02]} 33. Rxf7 {[%emt 0:00:04]} Ra1+ {[%emt 0:00:00]} 34. Ke2 {[%emt 0:00:04]}
Ra2+ {[%emt 0:00:00]} 35. Kd3 {[%emt 0:00:03]} Nc5+ {[%emt 0:00:00]} 36. Kd4 {
[%emt 0:00:03]} Bb6 {[%emt 0:00:08]} 37. f5+ {[%emt 0:00:03]} gxf5 {[%emt 0:00:
05]} 38. exf5+ {[%emt 0:00:00]} Kd6 {[%emt 0:00:00]} 39. Nc4+ {[%emt 0:00:06]}
Kc6 {[%emt 0:00:00]} 40. Rf6+ {[%emt 0:00:00]} Ne6+ {[%emt 0:00:09]} 41. Kd3 {
[%emt 0:00:00]} Bc5 {[%emt 0:00:05]} 42. Rxe6+ {[%emt 0:00:02]} Kb5 {[%emt 0:
00:02]} 43. g4 {[%emt 0:00:19]} Rf2 {[%emt 0:00:02]} 44. Nd2 {[%emt 0:00:02]}
a5 {[%emt 0:00:00]} 45. Re8 {[%emt 0:00:02]} a4 {[%emt 0:00:02]} 46. Rb8+ {
[%emt 0:00:02]} Kc6 {[%emt 0:00:04]} 47. Rc8+ {[%emt 0:00:00]} Kb6 {[%emt 0:00:
02]} 48. Nc4+ {[%emt 0:00:12]} Kb5 {[%emt 0:00:00]} 49. Rb8+ {[%emt 0:00:00]}
Ka6 {[%emt 0:00:07]} 50. Ne5 {[%emt 0:00:12]} b3 {[%emt 0:00:05]} 51. Kc3 {
[%emt 0:00:02]} Bd6 {[%emt 0:00:06]} 52. Re8 {[%emt 0:00:05]} Kb5 {[%emt 0:00:
07]} 53. Nc4 {[%emt 0:00:04]} Bb4+ {[%emt 0:00:03]} 54. Kd3 {[%emt 0:00:00]}
Rf3+ {[%emt 0:00:02]} 55. Ke4 {[%emt 0:00:03]} Kxc4 {[%emt 0:00:03]} 56. Kxf3 {
[%emt 0:00:01]} b2 {[%emt 0:00:00]} 57. Rc8+ {[%emt 0:00:03]} Kb3 {[%emt 0:00:
02]} 58. f6 {[%emt 0:00:03]} b1=Q {[%emt 0:00:01]} 0-1

[Event "RUS-ch Blitz 2021"]
[Site "Sochi"]
[Date "2021.10.11"]
[Round "9.8"]
[White "Pershin, Denis"]
[Black "Alekseev, Evgeny"]
[Result "0-1"]
[ECO "D36"]
[WhiteElo "2388"]
[BlackElo "2602"]
[Annotator "ChessBase"]
[PlyCount "77"]
[EventDate "2021.10.11"]
[EventType "blitz"]
[EventCountry "RUS"]
[SourceTitle "playchess.com"]
[Source "ChessBase"]
[SourceQuality "1"]
[TimeControl "180+2"]

1. d4 {[%emt 0:00:04]} Nf6 {[%emt 0:00:00]} 2. c4 {[%emt 0:00:00]} e6 {[%emt 0:
00:09]} 3. Nc3 {[%emt 0:00:00]} d5 {[%emt 0:00:00]} 4. cxd5 {[%emt 0:00:00]}
exd5 {[%emt 0:00:00]} 5. Bg5 {[%emt 0:00:00]} c6 {[%emt 0:00:00]} 6. Qc2 {
[%emt 0:00:00]} Nbd7 {[%emt 0:00:08]} 7. e3 {[%emt 0:00:02]} Bd6 {[%emt 0:00:
00]} 8. Bd3 {[%emt 0:00:12]} Nf8 {[%emt 0:00:00]} 9. Bh4 {[%emt 0:00:02]} Ng6 {
[%emt 0:00:03]} 10. Bg3 {[%emt 0:00:01]} O-O {[%emt 0:00:02]} 11. Nf3 {[%emt 0:
00:20]} Re8 {[%emt 0:00:14]} 12. O-O {[%emt 0:00:08]} Bg4 {[%emt 0:00:11]} 13.
Bxd6 {[%emt 0:00:13]} Qxd6 {[%emt 0:00:00]} 14. Nd2 {[%emt 0:00:00]} Nh4 {
[%emt 0:00:27]} 15. Rab1 {[%emt 0:00:13]} Bd7 {[%emt 0:00:11]} 16. b4 {[%emt 0:
00:10]} g6 {[%emt 0:00:18]} 17. g3 {[%emt 0:00:15]} Nf5 {[%emt 0:00:10]} 18.
Nb3 {[%emt 0:00:15]} b6 {[%emt 0:00:13]} 19. Rfd1 {[%emt 0:00:11]} Ng7 {
[%emt 0:00:07]} 20. b5 {[%emt 0:00:26]} Rac8 {[%emt 0:00:09]} 21. bxc6 {
[%emt 0:00:11]} Rxc6 {[%emt 0:00:00]} 22. Qb2 {[%emt 0:00:40]} Bf5 {[%emt 0:00:
16]} 23. Bxf5 {[%emt 0:00:03]} Nxf5 {[%emt 0:00:00]} 24. Rbc1 {[%emt 0:00:03]}
Rec8 {[%emt 0:00:04]} 25. Nb5 {[%emt 0:00:04]} Qd7 {[%emt 0:00:00]} 26. Rxc6 {
[%emt 0:00:06]} Rxc6 {[%emt 0:00:00]} 27. Rc1 {[%emt 0:00:02]} a6 {[%emt 0:00:
15]} 28. Rxc6 {[%emt 0:00:05]} Qxc6 {[%emt 0:00:04]} 29. Nc3 {[%emt 0:00:00]}
Nd6 {[%emt 0:00:00]} 30. Ne2 {[%emt 0:00:11]} a5 {[%emt 0:00:07]} 31. h4 {
[%emt 0:00:00]} Nde4 {[%emt 0:00:10]} 32. Nf4 {[%emt 0:00:02]} Qc4 {[%emt 0:00:
09]} 33. Nd2 {[%emt 0:00:02]} Nxd2 {[%emt 0:00:09]} 34. Qxd2 {[%emt 0:00:04]}
Ne4 {[%emt 0:00:04]} 35. Qb2 {[%emt 0:00:00]} b5 {[%emt 0:00:03]} 36. Kg2 {
[%emt 0:00:01]} b4 {[%emt 0:00:02]} 37. Qb1 {[%emt 0:00:08]} a4 {[%emt 0:00:05]
} 38. Nd3 {[%emt 0:00:00]} Nc3 {[%emt 0:00:02]} 39. Qf1 {[%emt 0:00:00]} 0-1

[Event "RUS-ch Blitz 2021"]
[Site "Sochi"]
[Date "2021.10.11"]
[Round "9.9"]
[White "Bologan, Victor"]
[Black "Shubin, Kirill"]
[Result "0-1"]
[ECO "A04"]
[WhiteElo "2574"]
[BlackElo "2463"]
[Annotator "ChessBase"]
[PlyCount "134"]
[EventDate "2021.10.11"]
[EventType "blitz"]
[EventCountry "RUS"]
[SourceTitle "playchess.com"]
[Source "ChessBase"]
[SourceQuality "1"]
[TimeControl "180+2"]

1. e4 {[%emt 0:00:00]} e6 {[%emt 0:00:04]} 2. d3 {[%emt 0:00:00]} c5 {[%emt 0:
00:00]} 3. Nf3 {[%emt 0:00:00]} Nc6 {[%emt 0:00:00]} 4. g3 {[%emt 0:00:10]} g6
{[%emt 0:00:00]} 5. Bg2 {[%emt 0:00:00]} Bg7 {[%emt 0:00:00]} 6. O-O {[%emt 0:
00:00]} Nge7 {[%emt 0:00:00]} 7. c3 {[%emt 0:00:00]} O-O {[%emt 0:00:14]} 8. d4
{[%emt 0:00:00]} cxd4 {[%emt 0:00:00]} 9. cxd4 {[%emt 0:00:00]} d5 {[%emt 0:00:
00]} 10. e5 {[%emt 0:00:06]} Nf5 {[%emt 0:00:08]} 11. Nc3 {[%emt 0:00:03]} f6 {
[%emt 0:00:22]} 12. g4 {[%emt 0:00:12]} fxe5 {[%emt 0:00:07]} 13. gxf5 {
[%emt 0:00:12]} e4 {[%emt 0:00:06]} 14. Bg5 {[%emt 0:00:59]} Qb6 {[%emt 0:00:
32]} 15. Na4 {[%emt 0:00:24]} Qc7 {[%emt 0:00:05]} 16. f6 {[%emt 0:00:05]} exf3
{[%emt 0:00:08]} 17. fxg7 {[%emt 0:00:04]} Rf5 {[%emt 0:00:00]} 18. Qd2 {
[%emt 0:00:46]} fxg2 {[%emt 0:00:00]} 19. Rfe1 {[%emt 0:00:01]} Qxg7 {[%emt 0:
00:12]} 20. Rad1 {[%emt 0:00:01]} Nxd4 {[%emt 0:00:13]} 21. Qxd4 {[%emt 0:00:
03]} Qxd4 {[%emt 0:00:01]} 22. Rxd4 {[%emt 0:00:04]} Rxg5 {[%emt 0:00:02]} 23.
Nc5 {[%emt 0:00:02]} Kf7 {[%emt 0:00:09]} 24. f4 {[%emt 0:00:05]} Rf5 {[%emt 0:
00:12]} 25. Kxg2 {[%emt 0:00:07]} b6 {[%emt 0:00:07]} 26. Nd3 {[%emt 0:00:01]}
Ba6 {[%emt 0:00:09]} 27. Ne5+ {[%emt 0:00:04]} Ke7 {[%emt 0:00:13]} 28. h4 {
[%emt 0:00:12]} Raf8 {[%emt 0:00:07]} 29. Ra4 {[%emt 0:00:06]} Bb5 {[%emt 0:00:
10]} 30. Rxa7+ {[%emt 0:00:00]} Kd6 {[%emt 0:00:00]} 31. a4 {[%emt 0:00:03]}
Be8 {[%emt 0:00:00]} 32. Rb7 {[%emt 0:00:01]} Rxf4 {[%emt 0:00:10]} 33. Rxb6+ {
[%emt 0:00:00]} Kc7 {[%emt 0:00:13]} 34. a5 {[%emt 0:00:03]} Rf2+ {[%emt 0:00:
12]} 35. Kg3 {[%emt 0:00:01]} Rc2 {[%emt 0:00:00]} 36. b4 {[%emt 0:00:02]} Rff2
{[%emt 0:00:05]} 37. Nd3 {[%emt 0:00:05]} Rg2+ {[%emt 0:00:00]} 38. Kf3 {
[%emt 0:00:02]} Rh2 {[%emt 0:00:03]} 39. Nc5 {[%emt 0:00:01]} Rc3+ {[%emt 0:00:
08]} 40. Kg4 {[%emt 0:00:05]} h6 {[%emt 0:00:05]} 41. Nxe6+ {[%emt 0:00:00]}
Kc8 {[%emt 0:00:00]} 42. Nc5 {[%emt 0:00:06]} Bd7+ {[%emt 0:00:00]} 43. Nxd7 {
[%emt 0:00:00]} Kxd7 {[%emt 0:00:03]} 44. Kf4 {[%emt 0:00:01]} Rxh4+ {[%emt 0:
00:01]} 45. Ke5 {[%emt 0:00:00]} Rcc4 {[%emt 0:00:05]} 46. b5 {[%emt 0:00:13]}
Rh5+ {[%emt 0:00:03]} 47. Kf6 {[%emt 0:00:01]} Rf4+ {[%emt 0:00:04]} 48. Kg7 {
[%emt 0:00:00]} Rhf5 {[%emt 0:00:02]} 49. a6 {[%emt 0:00:00]} Rf7+ {[%emt 0:00:
03]} 50. Kxg6 {[%emt 0:00:00]} R7f5 {[%emt 0:00:02]} 51. a7 {[%emt 0:00:04]}
Rg5+ {[%emt 0:00:00]} 52. Kxh6 {[%emt 0:00:01]} Rg2 {[%emt 0:00:02]} 53. Re5 {
[%emt 0:00:04]} Ra2 {[%emt 0:00:04]} 54. Rxd5+ {[%emt 0:00:03]} Ke7 {[%emt 0:
00:01]} 55. Rb7+ {[%emt 0:00:00]} Ke6 {[%emt 0:00:00]} 56. Rd8 {[%emt 0:00:02]}
Rg4 {[%emt 0:00:01]} 57. Re8+ {[%emt 0:00:06]} Kd6 {[%emt 0:00:01]} 58. Rd8+ {
[%emt 0:00:03]} Ke6 {[%emt 0:00:00]} 59. Kh5 {[%emt 0:00:01]} Rg1 {[%emt 0:00:
02]} 60. Rd4 {[%emt 0:00:01]} Rg8 {[%emt 0:00:05]} 61. Rb8 {[%emt 0:00:03]} Rg7
{[%emt 0:00:05]} 62. Re4+ {[%emt 0:00:01]} Kf5 {[%emt 0:00:03]} 63. Re5+ {
[%emt 0:00:00]} Kxe5 {[%emt 0:00:01]} 64. Kh6 {[%emt 0:00:06]} Rgxa7 {[%emt 0:
00:01]} 65. b6 {[%emt 0:00:01]} R7a6 {[%emt 0:00:00]} 66. Kg7 {[%emt 0:00:02]}
Rb2 {[%emt 0:00:02]} 67. b7 {[%emt 0:00:00]} Rab6 {[%emt 0:00:00]} 0-1

[Event "RUS-ch Blitz 2021"]
[Site "Sochi"]
[Date "2021.10.11"]
[Round "9.10"]
[White "Vastrukhin, Oleg"]
[Black "Gutenev, Alexander"]
[Result "1-0"]
[ECO "A05"]
[WhiteElo "2382"]
[BlackElo "2455"]
[Annotator "ChessBase"]
[PlyCount "123"]
[EventDate "2021.10.11"]
[EventType "blitz"]
[EventCountry "RUS"]
[SourceTitle "playchess.com"]
[Source "ChessBase"]
[SourceQuality "1"]
[TimeControl "180+2"]

1. Nf3 {[%emt 0:00:04]} Nf6 {[%emt 0:00:00]} 2. g3 {[%emt 0:00:00]} b6 {
[%emt 0:00:11]} 3. Bg2 {[%emt 0:00:00]} Bb7 {[%emt 0:00:00]} 4. O-O {[%emt 0:
00:00]} g6 {[%emt 0:00:00]} 5. d3 {[%emt 0:00:00]} d5 {[%emt 0:00:06]} 6. Nbd2
{[%emt 0:00:04]} Bg7 {[%emt 0:00:00]} 7. e4 {[%emt 0:00:00]} dxe4 {[%emt 0:00:
00]} 8. Ng5 {[%emt 0:00:00]} c5 {[%emt 0:00:04]} 9. Ngxe4 {[%emt 0:00:08]} Nxe4
{[%emt 0:00:01]} 10. Nxe4 {[%emt 0:00:02]} Nc6 {[%emt 0:00:05]} 11. h4 {
[%emt 0:00:15]} O-O {[%emt 0:00:14]} 12. h5 {[%emt 0:00:00]} Qd7 {[%emt 0:00:
06]} 13. h6 {[%emt 0:00:01]} Bh8 {[%emt 0:00:02]} 14. Re1 {[%emt 0:00:07]} f5 {
[%emt 0:00:47]} 15. Ng5 {[%emt 0:00:04]} e5 {[%emt 0:00:03]} 16. c3 {[%emt 0:
00:11]} Bf6 {[%emt 0:00:11]} 17. a3 {[%emt 0:01:06]} Na5 {[%emt 0:00:35]} 18.
b4 {[%emt 0:00:05]} Bxg2 {[%emt 0:00:03]} 19. Kxg2 {[%emt 0:00:00]} Qd5+ {
[%emt 0:00:08]} 20. Qf3 {[%emt 0:00:07]} Qxf3+ {[%emt 0:00:04]} 21. Nxf3 {
[%emt 0:00:00]} Nb3 {[%emt 0:00:07]} 22. Rb1 {[%emt 0:00:00]} Nxc1 {[%emt 0:00:
00]} 23. Rbxc1 {[%emt 0:00:00]} cxb4 {[%emt 0:00:15]} 24. cxb4 {[%emt 0:00:12]}
Rac8 {[%emt 0:00:17]} 25. Rxc8 {[%emt 0:00:03]} Rxc8 {[%emt 0:00:00]} 26. Nxe5
{[%emt 0:00:05]} Rc3 {[%emt 0:00:11]} 27. d4 {[%emt 0:00:06]} Rxa3 {[%emt 0:00:
02]} 28. Rc1 {[%emt 0:00:03]} Bxe5 {[%emt 0:00:06]} 29. dxe5 {[%emt 0:00:00]}
Rb3 {[%emt 0:00:09]} 30. Rc7 {[%emt 0:00:00]} Rxb4 {[%emt 0:00:02]} 31. Rg7+ {
[%emt 0:00:02]} Kf8 {[%emt 0:00:03]} 32. Rxa7 {[%emt 0:00:07]} Re4 {[%emt 0:00:
02]} 33. f4 {[%emt 0:00:02]} g5 {[%emt 0:00:07]} 34. Kf3 {[%emt 0:00:00]} g4+ {
[%emt 0:00:00]} 35. Kf2 {[%emt 0:00:02]} Kg8 {[%emt 0:00:08]} 36. Rg7+ {
[%emt 0:00:00]} Kh8 {[%emt 0:00:00]} 37. Rf7 {[%emt 0:00:03]} Kg8 {[%emt 0:00:
00]} 38. Rxf5 {[%emt 0:00:04]} Rb4 {[%emt 0:00:00]} 39. Rg5+ {[%emt 0:00:00]}
Kf8 {[%emt 0:00:03]} 40. Rxg4 {[%emt 0:00:01]} Rb2+ {[%emt 0:00:03]} 41. Kg1 {
[%emt 0:00:01]} Rb1+ {[%emt 0:00:02]} 42. Kg2 {[%emt 0:00:02]} Rb2+ {[%emt 0:
00:04]} 43. Kh3 {[%emt 0:00:09]} Rb1 {[%emt 0:00:01]} 44. Rg7 {[%emt 0:00:00]}
Rh1+ {[%emt 0:00:00]} 45. Kg4 {[%emt 0:00:06]} Rxh6 {[%emt 0:00:03]} 46. Rb7 {
[%emt 0:00:00]} Rg6+ {[%emt 0:00:00]} 47. Kf3 {[%emt 0:00:04]} h5 {[%emt 0:00:
00]} 48. Rh7 {[%emt 0:00:02]} b5 {[%emt 0:00:01]} 49. Rb7 {[%emt 0:00:03]} Rc6
{[%emt 0:00:08]} 50. Rxb5 {[%emt 0:00:02]} Rc3+ {[%emt 0:00:00]} 51. Kg2 {
[%emt 0:00:00]} Kf7 {[%emt 0:00:00]} 52. Rb6 {[%emt 0:00:04]} Kg7 {[%emt 0:00:
05]} 53. Kh3 {[%emt 0:00:00]} Rd3 {[%emt 0:00:02]} 54. Kh4 {[%emt 0:00:03]} Re3
{[%emt 0:00:02]} 55. Kxh5 {[%emt 0:00:06]} Rxg3 {[%emt 0:00:00]} 56. Kh4 {
[%emt 0:00:02]} Rg1 {[%emt 0:00:01]} 57. f5 {[%emt 0:00:03]} Kf8 {[%emt 0:00:
01]} 58. Rb8+ {[%emt 0:00:00]} Kf7 {[%emt 0:00:03]} 59. Rb7+ {[%emt 0:00:02]}
Kf8 {[%emt 0:00:02]} 60. e6 {[%emt 0:00:00]} Kg8 {[%emt 0:00:09]} 61. f6 {
[%emt 0:00:05]} Re1 {[%emt 0:00:02]} 62. Rb8+ {[%emt 0:00:02]} 1-0